[Event "Early-Titled-Tuesday-Blitz-June-18-2024"]
[Site "Chess.com"]
[Date "2024.06.18"]
[Round "8"]
[White "rockstar0902"]
[Black "SargissyanSargis"]
[Result "1-0"]
[WhiteElo "2607"]
[BlackElo "2430"]
[TimeControl "180+1"]
[EndTime "9:30:21 PDT"]
[Termination "rockstar0902 won on time"]

1. c4 {[%clk 0:03:00.9]} 1... e5 {[%clk 0:02:59.4]} 2. Nc3 {[%clk 0:03:00.8]}
2... Nf6 {[%clk 0:03:00.1]} 3. g3 {[%clk 0:02:59.4]} 3... d5 {[%clk 0:03:00.1]}
4. cxd5 {[%clk 0:03:00.1]} 4... Nxd5 {[%clk 0:03:00.9]} 5. Bg2 {[%clk
0:03:00.6]} 5... Nb6 {[%clk 0:03:00.4]} 6. e3 {[%clk 0:02:59.8]} 6... Nc6 {[%clk
0:02:59]} 7. Nge2 {[%clk 0:02:59.9]} 7... Bd6 {[%clk 0:02:47]} 8. O-O {[%clk
0:02:54.9]} 8... O-O {[%clk 0:02:47.5]} 9. f4 {[%clk 0:02:54.4]} 9... Bg4 {[%clk
0:02:35.1]} 10. h3 {[%clk 0:02:51.2]} 10... Bxe2 {[%clk 0:02:28.5]} 11. Qxe2
{[%clk 0:02:52.1]} 11... exf4 {[%clk 0:02:27.9]} 12. gxf4 {[%clk 0:02:51.4]}
12... Re8 {[%clk 0:02:25]} 13. Qg4 {[%clk 0:02:47.5]} 13... Bf8 {[%clk
0:02:06.3]} 14. b3 {[%clk 0:02:46.5]} 14... Qd3 {[%clk 0:02:05.6]} 15. Rf2
{[%clk 0:02:41.4]} 15... f5 {[%clk 0:01:57.5]} 16. Qg3 {[%clk 0:02:33.2]} 16...
g6 {[%clk 0:01:57.7]} 17. Bb2 {[%clk 0:02:31.5]} 17... Bg7 {[%clk 0:01:56.2]}
18. Rc1 {[%clk 0:02:27.8]} 18... Rad8 {[%clk 0:01:46.9]} 19. h4 {[%clk
0:02:26.8]} 19... Nb4 {[%clk 0:01:12.2]} 20. h5 {[%clk 0:02:19.6]} 20... Re6
{[%clk 0:00:56.5]} 21. a3 {[%clk 0:02:00.9]} 21... N4d5 {[%clk 0:00:55.1]} 22.
Bf1 {[%clk 0:01:57.6]} 22... Bxc3 {[%clk 0:00:27.2]} 23. Bxd3 {[%clk 0:01:53]}
23... Bxb2 {[%clk 0:00:26.9]} 24. Rb1 {[%clk 0:01:32.6]} 24... Bg7 {[%clk
0:00:24.3]} 25. h6 {[%clk 0:01:30.5]} 25... Bxh6 {[%clk 0:00:22.5]} 26. Bxf5
{[%clk 0:01:30]} 26... Rf6 {[%clk 0:00:22.7]} 27. Be4 {[%clk 0:01:26.3]} 27...
Re8 {[%clk 0:00:21.9]} 28. Bxd5+ {[%clk 0:01:17.9]} 28... Nxd5 {[%clk
0:00:21.9]} 29. Kg2 {[%clk 0:01:18.5]} 29... c6 {[%clk 0:00:22.2]} 30. Rh1
{[%clk 0:01:17.1]} 30... Bf8 {[%clk 0:00:21.9]} 31. f5 {[%clk 0:01:11.5]} 31...
Bd6 {[%clk 0:00:20]} 32. Qh4 {[%clk 0:01:11.4]} 32... Re7 {[%clk 0:00:18.4]} 33.
Kf1 {[%clk 0:01:08.8]} 33... Ref7 {[%clk 0:00:18.3]} 34. Ke2 {[%clk 0:01:06.6]}
34... Ne7 {[%clk 0:00:15.8]} 35. e4 {[%clk 0:00:57.5]} 35... Be5 {[%clk
0:00:14.5]} 36. Rg2 {[%clk 0:00:55.9]} 36... Kf8 {[%clk 0:00:13]} 37. Qh6+
{[%clk 0:00:48.4]} 37... Ke8 {[%clk 0:00:13.2]} 38. Qe3 {[%clk 0:00:42.9]} 38...
gxf5 {[%clk 0:00:12.7]} 39. Qxa7 {[%clk 0:00:41.9]} 39... fxe4 {[%clk
0:00:12.6]} 40. Rg8+ {[%clk 0:00:41]} 40... Kd7 {[%clk 0:00:12.3]} 41. Qxb7+
{[%clk 0:00:40.9]} 41... Ke6 {[%clk 0:00:12.3]} 42. Rd8 {[%clk 0:00:35.9]} 42...
Rf2+ {[%clk 0:00:10.4]} 43. Kd1 {[%clk 0:00:36.2]} 1-0

[Event "Early-Titled-Tuesday-Blitz-June-18-2024"]
[Site "Chess.com"]
[Date "2024.06.18"]
[Round "8"]
[White "ploxoi"]
[Black "szefru"]
[Result "1-0"]
[WhiteElo "2489"]
[BlackElo "2311"]
[TimeControl "180+1"]
[EndTime "9:30:21 PDT"]
[Termination "ploxoi won by resignation"]

1. c4 {[%clk 0:03:00.9]} 1... Nf6 {[%clk 0:02:59]} 2. Nf3 {[%clk 0:03:00]} 2...
g6 {[%clk 0:02:57.2]} 3. g3 {[%clk 0:03:00.1]} 3... Bg7 {[%clk 0:02:57.1]} 4.
Bg2 {[%clk 0:03:00.7]} 4... c6 {[%clk 0:02:57.6]} 5. O-O {[%clk 0:03:00.8]} 5...
d5 {[%clk 0:02:58.3]} 6. b3 {[%clk 0:03:00]} 6... Ne4 {[%clk 0:02:51.6]} 7. d4
{[%clk 0:02:59.7]} 7... O-O {[%clk 0:02:51.1]} 8. Bb2 {[%clk 0:02:59.1]} 8... a5
{[%clk 0:02:48.8]} 9. Nc3 {[%clk 0:02:56.4]} 9... Nxc3 {[%clk 0:02:45.3]} 10.
Bxc3 {[%clk 0:02:57.3]} 10... a4 {[%clk 0:02:46]} 11. Qd2 {[%clk 0:02:53.2]}
11... Bf5 {[%clk 0:02:42.2]} 12. e3 {[%clk 0:02:52.4]} 12... Nd7 {[%clk
0:02:38.5]} 13. Rfd1 {[%clk 0:02:51.9]} 13... Nb6 {[%clk 0:02:36]} 14. Qe2
{[%clk 0:02:49.7]} 14... Qc8 {[%clk 0:02:14.1]} 15. Ne5 {[%clk 0:02:43.6]} 15...
Bh3 {[%clk 0:01:47.3]} 16. Bh1 {[%clk 0:02:43.2]} 16... f6 {[%clk 0:01:42.5]}
17. Nf3 {[%clk 0:02:41.8]} 17... Bg4 {[%clk 0:01:39.4]} 18. Bg2 {[%clk
0:02:33.4]} 18... e5 {[%clk 0:01:36.2]} 19. e4 {[%clk 0:02:20.3]} 19... f5
{[%clk 0:01:24.4]} 20. h3 {[%clk 0:02:07.6]} 20... Bxf3 {[%clk 0:01:24.4]} 21.
Bxf3 {[%clk 0:02:06.7]} 21... dxe4 {[%clk 0:01:02.9]} 22. Bg2 {[%clk 0:02:06.1]}
22... Qe6 {[%clk 0:01:01.3]} 23. Bb4 {[%clk 0:01:57.9]} 23... Rfd8 {[%clk
0:01:00]} 24. Bc5 {[%clk 0:01:58.3]} 24... Nd7 {[%clk 0:00:55.9]} 25. d5 {[%clk
0:01:58.7]} 25... cxd5 {[%clk 0:00:52]} 26. cxd5 {[%clk 0:01:59.6]} 26... Qa6
{[%clk 0:00:47.2]} 27. Qxa6 {[%clk 0:01:59.5]} 27... Rxa6 {[%clk 0:00:47.2]} 28.
Be7 {[%clk 0:01:57.1]} 28... Rda8 {[%clk 0:00:43.3]} 29. Bf1 {[%clk 0:01:55.5]}
29... R6a7 {[%clk 0:00:43.3]} 30. bxa4 {[%clk 0:01:51.6]} 30... Kf7 {[%clk
0:00:32.8]} 31. d6 {[%clk 0:01:49.4]} 31... Nc5 {[%clk 0:00:30.3]} 32. Bc4+
{[%clk 0:01:46.5]} 32... Ne6 {[%clk 0:00:28.4]} 33. Rab1 {[%clk 0:01:36.6]}
33... Bf8 {[%clk 0:00:25.1]} 34. Bxf8 {[%clk 0:01:31.3]} 34... Rxf8 {[%clk
0:00:24.6]} 35. Bd5 {[%clk 0:01:26.3]} 35... Rd8 {[%clk 0:00:21.6]} 36. Rxb7+
{[%clk 0:01:17.5]} 36... Rxb7 {[%clk 0:00:21.7]} 37. Bxb7 {[%clk 0:01:18.4]}
37... Nd4 {[%clk 0:00:19.7]} 38. a5 {[%clk 0:01:14.8]} 38... Nb5 {[%clk
0:00:14.2]} 39. a6 {[%clk 0:01:02.4]} 39... Ke6 {[%clk 0:00:13.3]} 40. Bc6
{[%clk 0:00:51.6]} 40... Na7 {[%clk 0:00:13.3]} 41. Bd5+ {[%clk 0:00:49.5]}
41... Kd7 {[%clk 0:00:11.8]} 42. a4 {[%clk 0:00:47.3]} 42... Rb8 {[%clk
0:00:10.8]} 43. Bb7 {[%clk 0:00:46.1]} 43... g5 {[%clk 0:00:08.2]} 44. g4 {[%clk
0:00:39.4]} 44... f4 {[%clk 0:00:08.1]} 45. Bxe4 {[%clk 0:00:38.9]} 45... Rb4
{[%clk 0:00:08.1]} 46. Bf5+ {[%clk 0:00:38.8]} 46... Kd8 {[%clk 0:00:07.8]} 47.
d7 {[%clk 0:00:37.3]} 47... Rxa4 {[%clk 0:00:06.2]} 48. Rc1 {[%clk 0:00:37.9]}
48... Rxa6 {[%clk 0:00:05.1]} 49. Rc8+ {[%clk 0:00:38.4]} 1-0

[Event "Early-Titled-Tuesday-Blitz-June-18-2024"]
[Site "Chess.com"]
[Date "2024.06.18"]
[Round "8"]
[White "Fandorine"]
[Black "SaraBlackPanther"]
[Result "1-0"]
[WhiteElo "2942"]
[BlackElo "2709"]
[TimeControl "180+1"]
[EndTime "9:30:23 PDT"]
[Termination "Fandorine won by resignation"]

1. e4 {[%clk 0:03:00.9]} 1... c5 {[%clk 0:02:59.7]} 2. b3 {[%clk 0:03:00.8]}
2... Nc6 {[%clk 0:02:44.7]} 3. Bb2 {[%clk 0:03:00.5]} 3... d6 {[%clk 0:02:44.5]}
4. Bb5 {[%clk 0:03:00]} 4... Bd7 {[%clk 0:02:44.3]} 5. f4 {[%clk 0:03:00.5]}
5... a6 {[%clk 0:02:41.1]} 6. Bxc6 {[%clk 0:03:00.5]} 6... Bxc6 {[%clk 0:02:42]}
7. Qe2 {[%clk 0:03:00.9]} 7... e6 {[%clk 0:02:34.3]} 8. Nf3 {[%clk 0:03:00.2]}
8... Nf6 {[%clk 0:02:34.5]} 9. Nc3 {[%clk 0:02:44.2]} 9... b5 {[%clk 0:02:31.2]}
10. e5 {[%clk 0:02:30.8]} 10... dxe5 {[%clk 0:02:19.6]} 11. Nxe5 {[%clk
0:02:30.2]} 11... Qc7 {[%clk 0:02:14.6]} 12. Nxc6 {[%clk 0:02:23.9]} 12... Qxc6
{[%clk 0:02:14.7]} 13. O-O-O {[%clk 0:02:23.6]} 13... O-O-O {[%clk 0:02:01.4]}
14. Rhf1 {[%clk 0:01:56]} 14... Bd6 {[%clk 0:01:57]} 15. Kb1 {[%clk 0:01:43.1]}
15... Rhe8 {[%clk 0:01:56.9]} 16. g4 {[%clk 0:01:39.7]} 16... Kb7 {[%clk
0:01:50.5]} 17. g5 {[%clk 0:01:34.9]} 17... Nd5 {[%clk 0:01:49.3]} 18. Ne4
{[%clk 0:01:34]} 18... Bc7 {[%clk 0:01:23.5]} 19. Bxg7 {[%clk 0:01:28.6]} 19...
Nxf4 {[%clk 0:01:10]} 20. Qf3 {[%clk 0:01:28.1]} 20... Ka7 {[%clk 0:00:49.1]}
21. Qe3 {[%clk 0:00:56.3]} 21... Rd5 {[%clk 0:00:15.7]} 22. Rxf4 {[%clk
0:00:51.2]} 22... Bxf4 {[%clk 0:00:16.6]} 23. Qxf4 {[%clk 0:00:51.1]} 23... Rf5
{[%clk 0:00:14.1]} 24. Qd6 {[%clk 0:00:44.2]} 24... Rc8 {[%clk 0:00:12.3]} 25.
Qxc6 {[%clk 0:00:41.9]} 25... Rxc6 {[%clk 0:00:10.4]} 26. Re1 {[%clk 0:00:37.4]}
26... Kb7 {[%clk 0:00:09.5]} 27. Bf6 {[%clk 0:00:33.1]} 27... Kc7 {[%clk
0:00:07.7]} 28. Re2 {[%clk 0:00:33.3]} 28... Kd7 {[%clk 0:00:07.3]} 29. Kb2
{[%clk 0:00:33.8]} 29... Rc8 {[%clk 0:00:07.3]} 30. d3 {[%clk 0:00:34.1]} 30...
Rg8 {[%clk 0:00:04.1]} 31. h4 {[%clk 0:00:34.4]} 31... Kc6 {[%clk 0:00:02.3]}
32. a3 {[%clk 0:00:29.1]} 32... a5 {[%clk 0:00:02.1]} 33. Bc3 {[%clk 0:00:25.1]}
33... Ra8 {[%clk 0:00:02.8]} 34. Be1 {[%clk 0:00:22.8]} 34... b4 {[%clk
0:00:03.1]} 35. a4 {[%clk 0:00:22.9]} 35... Rd8 {[%clk 0:00:02.4]} 36. Nd2
{[%clk 0:00:23.1]} 36... Rg8 {[%clk 0:00:02.3]} 37. Nc4 {[%clk 0:00:23.4]} 37...
Ra8 {[%clk 0:00:01.4]} 38. Bg3 {[%clk 0:00:20.8]} 38... Kd5 {[%clk 0:00:01.2]}
39. Ne3+ {[%clk 0:00:20.5]} 1-0

[Event "Early-Titled-Tuesday-Blitz-June-18-2024"]
[Site "Chess.com"]
[Date "2024.06.18"]
[Round "8"]
[White "zverr1"]
[Black "Stanbad1"]
[Result "0-1"]
[WhiteElo "2541"]
[BlackElo "2714"]
[TimeControl "180+1"]
[EndTime "9:30:25 PDT"]
[Termination "Stanbad1 won by resignation"]

1. d4 {[%clk 0:03:00.9]} 1... Nf6 {[%clk 0:02:59.9]} 2. c4 {[%clk 0:03:01]} 2...
c5 {[%clk 0:02:58.7]} 3. d5 {[%clk 0:03:00.5]} 3... b5 {[%clk 0:02:59.4]} 4.
cxb5 {[%clk 0:03:01.3]} 4... a6 {[%clk 0:02:59.9]} 5. bxa6 {[%clk 0:03:02.2]}
5... g6 {[%clk 0:03:00.1]} 6. Nc3 {[%clk 0:03:02.8]} 6... Bg7 {[%clk 0:03:00.5]}
7. e4 {[%clk 0:03:01.4]} 7... O-O {[%clk 0:03:00.6]} 8. Be2 {[%clk 0:02:59.7]}
8... Qa5 {[%clk 0:02:58.8]} 9. Bd2 {[%clk 0:02:59.1]} 9... Bxa6 {[%clk
0:02:58.2]} 10. e5 {[%clk 0:02:58.9]} 10... Ne8 {[%clk 0:02:57.9]} 11. Nf3
{[%clk 0:02:59.6]} 11... d6 {[%clk 0:02:57.8]} 12. e6 {[%clk 0:02:57.7]} 12...
fxe6 {[%clk 0:02:57.2]} 13. Ng5 {[%clk 0:02:57.3]} 13... Bc8 {[%clk 0:02:42.3]}
14. h4 {[%clk 0:02:44.6]} 14... exd5 {[%clk 0:02:23.3]} 15. Nxd5 {[%clk
0:02:41.2]} 15... Qd8 {[%clk 0:02:22.9]} 16. h5 {[%clk 0:02:35.4]} 16... e6
{[%clk 0:02:13.9]} 17. hxg6 {[%clk 0:02:22.4]} 17... hxg6 {[%clk 0:02:13]} 18.
Qb3 {[%clk 0:02:13.1]} 18... Nc6 {[%clk 0:02:08.8]} 19. Qh3 {[%clk 0:02:12.2]}
19... Rf5 {[%clk 0:02:03.1]} 20. Qh7+ {[%clk 0:02:06]} 20... Kf8 {[%clk
0:02:01.8]} 21. Qxg6 {[%clk 0:01:13.4]} 21... exd5 {[%clk 0:01:58.7]} 22. Bc3
{[%clk 0:00:50.8]} 22... d4 {[%clk 0:01:38.1]} 23. Nh7+ {[%clk 0:00:47.3]} 23...
Ke7 {[%clk 0:01:24.6]} 24. Bd2 {[%clk 0:00:45.4]} 24... Ne5 {[%clk 0:01:14.6]}
25. Qg3 {[%clk 0:00:35.4]} 25... Kd7 {[%clk 0:01:10]} 26. Ng5 {[%clk 0:00:25.5]}
26... Kc7 {[%clk 0:01:07.8]} 27. Rh7 {[%clk 0:00:25.2]} 27... Bd7 {[%clk
0:01:04.5]} 28. Bb5 {[%clk 0:00:22.9]} 28... Kc8 {[%clk 0:00:48.6]} 29. Be2
{[%clk 0:00:21.9]} 29... Rb8 {[%clk 0:00:40.2]} 30. Ne4 {[%clk 0:00:21.8]} 30...
Qe7 {[%clk 0:00:25.1]} 31. Ba6+ {[%clk 0:00:21.6]} 31... Kc7 {[%clk 0:00:24.9]}
32. Ba5+ {[%clk 0:00:21.5]} 32... Kc6 {[%clk 0:00:25.4]} 33. Qa3 {[%clk
0:00:18.6]} 33... Kd5 {[%clk 0:00:21.5]} 34. f3 {[%clk 0:00:15.2]} 34... Bb5
{[%clk 0:00:15.4]} 35. Qb3+ {[%clk 0:00:12.6]} 35... c4 {[%clk 0:00:15.9]} 36.
Qb4 {[%clk 0:00:05.4]} 36... Nd3+ {[%clk 0:00:15.6]} 37. Kd2 {[%clk 0:00:05.1]}
37... Nxb4 {[%clk 0:00:16.5]} 38. Bxb4 {[%clk 0:00:05.5]} 38... Bxa6 {[%clk
0:00:16.3]} 0-1

[Event "Early-Titled-Tuesday-Blitz-June-18-2024"]
[Site "Chess.com"]
[Date "2024.06.18"]
[Round "8"]
[White "Puzzlebot_1294"]
[Black "Barboval"]
[Result "1-0"]
[WhiteElo "2682"]
[BlackElo "2534"]
[TimeControl "180+1"]
[EndTime "9:30:27 PDT"]
[Termination "Puzzlebot_1294 won by resignation"]

1. d4 {[%clk 0:02:59.1]} 1... Nf6 {[%clk 0:03:00.9]} 2. Bf4 {[%clk 0:02:58.5]}
2... e6 {[%clk 0:02:57.8]} 3. e3 {[%clk 0:02:57.1]} 3... c5 {[%clk 0:02:57.9]}
4. Nf3 {[%clk 0:02:56.6]} 4... Qb6 {[%clk 0:02:57.7]} 5. Nc3 {[%clk 0:02:55.4]}
5... a6 {[%clk 0:02:48.7]} 6. Rb1 {[%clk 0:02:51.2]} 6... cxd4 {[%clk 0:02:45]}
7. exd4 {[%clk 0:02:52.1]} 7... Bb4 {[%clk 0:02:45.2]} 8. Bd3 {[%clk 0:02:48.1]}
8... Nc6 {[%clk 0:02:41.2]} 9. Be3 {[%clk 0:02:44.6]} 9... Nd5 {[%clk
0:02:39.5]} 10. Bd2 {[%clk 0:02:40.3]} 10... Nxd4 {[%clk 0:02:22.2]} 11. Nxd5
{[%clk 0:02:33.9]} 11... Bxd2+ {[%clk 0:02:23.1]} 12. Nxd2 {[%clk 0:02:31.8]}
12... exd5 {[%clk 0:02:22.9]} 13. O-O {[%clk 0:02:31.8]} 13... O-O {[%clk
0:02:20.7]} 14. Qh5 {[%clk 0:02:31.5]} 14... f5 {[%clk 0:02:15.3]} 15. Rfe1
{[%clk 0:02:18.2]} 15... Qg6 {[%clk 0:01:50.6]} 16. Qxg6 {[%clk 0:02:08.3]}
16... hxg6 {[%clk 0:01:51.5]} 17. Re7 {[%clk 0:02:08.7]} 17... Nc6 {[%clk
0:01:43.8]} 18. Re2 {[%clk 0:02:07.4]} 18... d6 {[%clk 0:01:42.6]} 19. Nf3
{[%clk 0:02:05.8]} 19... Bd7 {[%clk 0:01:41.7]} 20. Rbe1 {[%clk 0:01:51.2]}
20... Rae8 {[%clk 0:01:41.8]} 21. a3 {[%clk 0:01:48.6]} 21... Rxe2 {[%clk
0:01:35.5]} 22. Bxe2 {[%clk 0:01:49.5]} 22... Re8 {[%clk 0:01:34.7]} 23. Kf1
{[%clk 0:01:47.7]} 23... Kf7 {[%clk 0:01:30.7]} 24. Rd1 {[%clk 0:01:42.7]} 24...
Be6 {[%clk 0:01:19.6]} 25. Ng5+ {[%clk 0:01:40.1]} 25... Kf6 {[%clk 0:01:20.1]}
26. f4 {[%clk 0:01:36.6]} 26... Bg8 {[%clk 0:01:03.6]} 27. Bf3 {[%clk
0:01:32.4]} 27... Ne7 {[%clk 0:01:04]} 28. c3 {[%clk 0:01:27.1]} 28... Rc8
{[%clk 0:01:03.5]} 29. Kf2 {[%clk 0:01:25]} 29... Rc4 {[%clk 0:01:03]} 30. g3
{[%clk 0:01:23.9]} 30... Rc5 {[%clk 0:01:00.1]} 31. Rd2 {[%clk 0:01:20.5]} 31...
b5 {[%clk 0:00:58.1]} 32. Be2 {[%clk 0:01:16.2]} 32... Nc6 {[%clk 0:00:53.6]}
33. Nf3 {[%clk 0:01:15.1]} 33... a5 {[%clk 0:00:48.3]} 34. Nd4 {[%clk
0:01:09.8]} 34... Na7 {[%clk 0:00:43.1]} 35. Nb3 {[%clk 0:01:07.2]} 35... Rc7
{[%clk 0:00:34.4]} 36. Nxa5 {[%clk 0:01:05.4]} 36... g5 {[%clk 0:00:28.4]} 37.
Nb3 {[%clk 0:01:03.9]} 37... g4 {[%clk 0:00:28]} 38. Nd4 {[%clk 0:01:02.3]}
38... Rb7 {[%clk 0:00:24.1]} 39. Bd3 {[%clk 0:01:01.9]} 39... g6 {[%clk
0:00:23.9]} 40. Bc2 {[%clk 0:00:59.8]} 40... Bf7 {[%clk 0:00:19.4]} 41. Bb3
{[%clk 0:00:59.2]} 41... Rc7 {[%clk 0:00:18]} 42. Nc2 {[%clk 0:00:56.7]} 42...
Nc6 {[%clk 0:00:11.6]} 43. Bxd5 {[%clk 0:00:54.8]} 43... Bxd5 {[%clk 0:00:12]}
44. Rxd5 {[%clk 0:00:55.4]} 44... Na5 {[%clk 0:00:12.5]} 45. Rxd6+ {[%clk
0:00:50]} 45... Ke7 {[%clk 0:00:12.2]} 46. Rxg6 {[%clk 0:00:49.2]} 46... Nc4
{[%clk 0:00:12.8]} 47. Rg7+ {[%clk 0:00:48.8]} 47... Kd6 {[%clk 0:00:13.5]} 48.
Rxc7 {[%clk 0:00:49.7]} 48... Kxc7 {[%clk 0:00:14.4]} 49. b3 {[%clk 0:00:50.3]}
49... Nd6 {[%clk 0:00:13.6]} 50. Nd4 {[%clk 0:00:49.6]} 50... Ne4+ {[%clk
0:00:14.5]} 51. Ke3 {[%clk 0:00:48.7]} 51... Nxc3 {[%clk 0:00:15.4]} 52. Nxf5
{[%clk 0:00:49.2]} 52... Nb1 {[%clk 0:00:16.3]} 53. a4 {[%clk 0:00:48.8]} 53...
bxa4 {[%clk 0:00:17]} 54. bxa4 {[%clk 0:00:49.7]} 54... Nc3 {[%clk 0:00:17.9]}
55. a5 {[%clk 0:00:48]} 55... Nd5+ {[%clk 0:00:18.2]} 56. Kd4 {[%clk 0:00:47.5]}
56... Nf6 {[%clk 0:00:18.1]} 57. Ne3 {[%clk 0:00:48.4]} 1-0

[Event "Early-Titled-Tuesday-Blitz-June-18-2024"]
[Site "Chess.com"]
[Date "2024.06.18"]
[Round "8"]
[White "Chessbard1972"]
[Black "amylazy"]
[Result "1-0"]
[WhiteElo "2275"]
[BlackElo "2472"]
[TimeControl "180+1"]
[EndTime "9:30:27 PDT"]
[Termination "Chessbard1972 won on time"]

1. e4 {[%clk 0:03:00.5]} 1... c5 {[%clk 0:02:55.7]} 2. d4 {[%clk 0:02:59.1]}
2... cxd4 {[%clk 0:02:55.5]} 3. c3 {[%clk 0:02:59.6]} 3... Nf6 {[%clk
0:02:55.5]} 4. e5 {[%clk 0:02:59.4]} 4... Nd5 {[%clk 0:02:55.8]} 5. Bc4 {[%clk
0:03:00.1]} 5... Nb6 {[%clk 0:02:55.2]} 6. Bb3 {[%clk 0:02:59]} 6... d5 {[%clk
0:02:55.8]} 7. exd6 {[%clk 0:02:57.8]} 7... Qxd6 {[%clk 0:02:55.4]} 8. cxd4
{[%clk 0:02:58.1]} 8... g6 {[%clk 0:02:54.1]} 9. Nf3 {[%clk 0:02:57.4]} 9... Bg7
{[%clk 0:02:54.2]} 10. Nc3 {[%clk 0:02:56.4]} 10... O-O {[%clk 0:02:54.7]} 11.
h3 {[%clk 0:02:54.9]} 11... Nc6 {[%clk 0:02:54.7]} 12. Be3 {[%clk 0:02:54.1]}
12... Bf5 {[%clk 0:02:43.7]} 13. O-O {[%clk 0:02:52.7]} 13... Rad8 {[%clk
0:02:42.3]} 14. Nb5 {[%clk 0:02:44.4]} 14... Qb8 {[%clk 0:02:40.1]} 15. Qe2
{[%clk 0:02:30.2]} 15... a6 {[%clk 0:02:39.4]} 16. Nc3 {[%clk 0:02:29.8]} 16...
Nb4 {[%clk 0:02:13.3]} 17. Rad1 {[%clk 0:02:25.9]} 17... N4d5 {[%clk 0:02:13.7]}
18. Bg5 {[%clk 0:02:24.2]} 18... Rfe8 {[%clk 0:02:11.9]} 19. Rfe1 {[%clk
0:02:10.6]} 19... Nxc3 {[%clk 0:01:58.6]} 20. bxc3 {[%clk 0:02:09]} 20... Nd5
{[%clk 0:01:59.5]} 21. Bd2 {[%clk 0:02:06.7]} 21... b5 {[%clk 0:01:53.8]} 22.
Ne5 {[%clk 0:02:05.9]} 22... Be6 {[%clk 0:01:45.8]} 23. Nc6 {[%clk 0:02:05]}
23... Qc7 {[%clk 0:01:36.1]} 24. Nxd8 {[%clk 0:02:04.9]} 24... Rxd8 {[%clk
0:01:37]} 25. Rc1 {[%clk 0:02:01.6]} 25... Qb6 {[%clk 0:01:22.5]} 26. a4 {[%clk
0:02:00]} 26... bxa4 {[%clk 0:01:21.6]} 27. Bxa4 {[%clk 0:02:00.1]} 27... Nf6
{[%clk 0:01:17.9]} 28. Be3 {[%clk 0:01:54.4]} 28... Qa5 {[%clk 0:01:14.6]} 29.
Bc6 {[%clk 0:01:44.2]} 29... Rc8 {[%clk 0:01:10.9]} 30. Qf3 {[%clk 0:01:38.4]}
30... Qc7 {[%clk 0:00:48.4]} 31. Bb7 {[%clk 0:01:34.1]} 31... Rb8 {[%clk
0:00:47.3]} 32. Bxa6 {[%clk 0:01:33.8]} 32... Qa5 {[%clk 0:00:26.5]} 33. Bf1
{[%clk 0:01:28.6]} 33... Nd5 {[%clk 0:00:25.8]} 34. c4 {[%clk 0:01:25.7]} 34...
Nxe3 {[%clk 0:00:25.5]} 35. fxe3 {[%clk 0:01:23.8]} 35... h5 {[%clk 0:00:21.8]}
36. Rb1 {[%clk 0:01:19.4]} 36... Rc8 {[%clk 0:00:20.8]} 37. Rec1 {[%clk
0:01:13]} 37... Qd2 {[%clk 0:00:19]} 38. Qf2 {[%clk 0:01:08.7]} 38... Qa5 {[%clk
0:00:19]} 39. Bd3 {[%clk 0:01:06.5]} 39... Qa3 {[%clk 0:00:14.6]} 40. Qe2 {[%clk
0:01:02.4]} 40... Bh6 {[%clk 0:00:13.9]} 41. d5 {[%clk 0:00:57.7]} 41... Bd7
{[%clk 0:00:12.2]} 42. Rf1 {[%clk 0:00:54.9]} 42... Qc5 {[%clk 0:00:10.8]} 43.
Kh1 {[%clk 0:00:53]} 43... Bxe3 {[%clk 0:00:08]} 44. Qf3 {[%clk 0:00:52.2]}
44... f5 {[%clk 0:00:03.4]} 45. Rbe1 {[%clk 0:00:48.8]} 45... Bg5 {[%clk
0:00:03.5]} 46. Qg3 {[%clk 0:00:45.6]} 46... Bf6 {[%clk 0:00:02]} 47. Qxg6+
{[%clk 0:00:45.2]} 47... Bg7 {[%clk 0:00:02.9]} 48. Bxf5 {[%clk 0:00:44]} 1-0

[Event "Early-Titled-Tuesday-Blitz-June-18-2024"]
[Site "Chess.com"]
[Date "2024.06.18"]
[Round "8"]
[White "yaguigor"]
[Black "VaglioSagan"]
[Result "1-0"]
[WhiteElo "2639"]
[BlackElo "2486"]
[TimeControl "180+1"]
[EndTime "9:30:27 PDT"]
[Termination "yaguigor won by checkmate"]

1. e4 {[%clk 0:03:00.9]} 1... c6 {[%clk 0:02:59.5]} 2. d4 {[%clk 0:03:00]} 2...
d5 {[%clk 0:03:00.4]} 3. e5 {[%clk 0:02:58.5]} 3... Bf5 {[%clk 0:03:00.3]} 4. h4
{[%clk 0:02:57.7]} 4... h5 {[%clk 0:02:59.9]} 5. Bd3 {[%clk 0:02:57]} 5... Bxd3
{[%clk 0:02:58.8]} 6. Qxd3 {[%clk 0:02:57.9]} 6... e6 {[%clk 0:02:59.4]} 7. Bg5
{[%clk 0:02:57.1]} 7... Qb6 {[%clk 0:02:57.5]} 8. Nd2 {[%clk 0:02:56]} 8... c5
{[%clk 0:02:53.5]} 9. c4 {[%clk 0:02:53.6]} 9... Nc6 {[%clk 0:02:46.8]} 10. Ne2
{[%clk 0:02:51.1]} 10... cxd4 {[%clk 0:02:43]} 11. cxd5 {[%clk 0:02:32.6]} 11...
Nxe5 {[%clk 0:02:24.8]} 12. Qe4 {[%clk 0:02:31.3]} 12... d3 {[%clk 0:02:09.8]}
13. dxe6 {[%clk 0:02:18.3]} 13... dxe2 {[%clk 0:02:00.4]} 14. exf7+ {[%clk
0:02:16.6]} 14... Kxf7 {[%clk 0:01:58.5]} 15. Qxe5 {[%clk 0:02:16.8]} 15... Nf6
{[%clk 0:01:50.9]} 16. Bxf6 {[%clk 0:02:03.4]} 16... gxf6 {[%clk 0:01:51.8]} 17.
Qd5+ {[%clk 0:02:02.7]} 17... Kg7 {[%clk 0:01:50.4]} 18. Rh3 {[%clk 0:02:01.7]}
18... Bd6 {[%clk 0:01:50.1]} 19. Nc4 {[%clk 0:01:54.6]} 19... Qb4+ {[%clk
0:01:33.1]} 20. Kxe2 {[%clk 0:01:54.3]} 20... Rae8+ {[%clk 0:01:13.1]} 21. Kf1
{[%clk 0:01:52.9]} 21... Bf4 {[%clk 0:01:13]} 22. Rb3 {[%clk 0:01:49.6]} 22...
Qf8 {[%clk 0:01:00.8]} 23. Rxb7+ {[%clk 0:01:48.9]} 23... Re7 {[%clk 0:00:54]}
24. g3 {[%clk 0:01:41.6]} 24... Bb8 {[%clk 0:00:46]} 25. Re1 {[%clk 0:01:38.1]}
25... Rxb7 {[%clk 0:00:44.8]} 26. Qxb7+ {[%clk 0:01:37.2]} 26... Kh6 {[%clk
0:00:45.3]} 27. Ne3 {[%clk 0:01:24.6]} 27... Qc8 {[%clk 0:00:39.6]} 28. Qe4
{[%clk 0:00:55.7]} 28... Qh3+ {[%clk 0:00:30.3]} 29. Kg1 {[%clk 0:00:54.4]}
29... Rg8 {[%clk 0:00:28.3]} 30. Nf5+ {[%clk 0:00:51.5]} 30... Kh7 {[%clk
0:00:28.8]} 31. Ne7+ {[%clk 0:00:48.3]} 31... Kh8 {[%clk 0:00:29.4]} 32. Nxg8
{[%clk 0:00:47.4]} 32... Bxg3 {[%clk 0:00:29.9]} 33. Qg2 {[%clk 0:00:41.3]}
33... Bxf2+ {[%clk 0:00:27.1]} 34. Kxf2 {[%clk 0:00:39.2]} 34... Qxh4+ {[%clk
0:00:27.4]} 35. Qg3 {[%clk 0:00:37.5]} 35... Qd4+ {[%clk 0:00:27.2]} 36. Kg2
{[%clk 0:00:37.6]} 36... Qxb2+ {[%clk 0:00:27.7]} 37. Kh3 {[%clk 0:00:33.3]}
37... Qxa2 {[%clk 0:00:23.1]} 38. Nh6 {[%clk 0:00:29.6]} 38... Kh7 {[%clk
0:00:11.9]} 39. Re7+ {[%clk 0:00:22.4]} 39... Kxh6 {[%clk 0:00:12.5]} 40. Qg7#
{[%clk 0:00:21.3]} 1-0